fUSD/lending_fUSD_20240611
["ID","MTS","AMOUNT","RATE_DAILY","PERIOD"]
[329134004,1718129439566,-1100.0,0.000215,7]
[329134005,1718129439577,-700.0,0.000215,7]
[329134006,1718129439590,-235.93726998,0.000215,2]
[329134007,1718129439601,-187.56162543,0.00021513,2]
[329134008,1718129439612,-173.30371156,0.00021536,2]
[329134009,1718129439624,-188.80861575,0.00021536,2]
[329134010,1718129439635,-199.74155669,0.00021536,2]
[329134011,1718129439647,-7500.0,0.00021562,2]
[329134012,1718129439659,-187.56162543,0.00021572,2]
[329134013,1718129439671,-954.54838896,0.00021573,2]
[329134014,1718129439682,-235.93726994,0.00021579,2]
[329134015,1718129439693,-204.99679615,0.0002159,2]
[329134016,1718129439705,-238.25486485,0.0002159,2]
[329134017,1718129439717,-338.4202948,0.00021591,2]
[329134018,1718129439727,-34996.22923036,0.00021592,2]
[329134019,1718129439739,-447.16442403,0.00021592,2]
[329134020,1718129439749,-518.51321967,0.00021592,2]
[329134021,1718129439761,-525.50104401,0.00021592,2]
[329134022,1718129439774,-3019.72982412,0.00021592,2]
[329134023,1718129439786,-1819.49043748,0.00021592,2]
[329134024,1718129439797,-531.15011943,0.00021592,2]
[329134025,1718129439809,-334.29552451,0.00021592,2]
[329134026,1718129439820,-364.29041403,0.00021592,2]
[329134027,1718129439832,-1050.75114172,0.00021592,2]
[329134028,1718129439843,-1000.0,0.00021593,2]
[329134029,1718129439853,-192.16750045,0.00021593,2]
[329134030,1718129439864,-416.19641201,0.00021593,2]
[329134031,1718129439875,-172.1673832,0.00021593,2]
[329134032,1718129439886,-207968.97692525,0.00021594,2]
[329134033,1718129439896,-1700.0,0.000216,7]
[329134034,1718129439907,-1100.0,0.000216,7]
[329134035,1718129439918,-175.18592882,0.00021601,2]
[329134036,1718129439928,-207968.97692525,0.00021611,2]
[329134037,1718129439939,-287.57058886,0.00021614,2]
[329134038,1718129439950,-175.05137282,0.00021617,2]
[329134039,1718129439960,-152.15,0.00021624,2]
[329134040,1718129439971,-287.57058886,0.00021632,2]
[329134042,1718129439981,-207968.97692525,0.00021634,2]
[329134043,1718129439992,-287.57058886,0.00021636,2]
[329134045,1718129440006,-3625.39762921,0.00021652,2]
[329134047,1718129440026,-287.57058886,0.00021655,2]
[329134049,1718129440037,-235.93726994,0.00021659,2]
[329134051,1718129440049,-207968.97692525,0.00021662,2]
[329134053,1718129440060,-23168.0667715,0.00021662,2]
[329134093,1718129440365,-184800.91015375,0.00021662,2]
[329134095,1718129440375,-37576.48434198,0.00021672,2]
[329134112,1718129440555,-5753.6985688,0.00021672,2]
[329134114,1718129440568,-35439.29317107,0.00021672,2]
[329134123,1718129440712,-4485.92499844,0.00021672,2]
[329134124,1718129440724,-271.7099987,0.00021672,2]
[329134145,1718129441033,-4677.18940891,0.00021672,2]
[329134164,1718129441234,-3908.01548458,0.00021672,2]
[329134438,1718129443979,-604.4076102,0.00021672,2]
[329134461,1718129444243,-115252.25334257,0.00021672,2]
[329134464,1718129444255,-151.0,0.00021672,2]
[329134466,1718129444266,-151.0,0.00021672,2]
[329134468,1718129444276,-151.0,0.00021672,2]
[329134470,1718129444286,-165.025997,0.00021672,2]
[329134472,1718129444297,-151.0,0.00021672,2]
[329134474,1718129444308,-158.187502,0.00021672,2]
[329134476,1718129444319,-158.187502,0.00021672,2]
[329134478,1718129444329,-151.0,0.00021672,2]
[329134480,1718129444340,-157.198841,0.00021672,2]
[329134482,1718129444350,-152.259226,0.00021672,2]
[329134484,1718129444361,-151.0,0.00021672,2]
[329134486,1718129444371,-151.0,0.00021672,2]
[329134488,1718129444382,-151.0,0.00021672,2]
[329134490,1718129444393,-172.701558,0.00021672,2]
[329134492,1718129444404,-151.0,0.00021672,2]
[329134494,1718129444415,-151.0,0.00021672,2]
[329134496,1718129444426,-151.0,0.00021672,2]
[329134498,1718129444436,-151.0,0.00021672,2]
[329134500,1718129444447,-151.0,0.00021672,2]
[329134502,1718129444457,-151.0,0.00021672,2]
[329134504,1718129444468,-263.56623,0.00021672,2]
[329134506,1718129444479,-151.0,0.00021672,2]
[329134508,1718129444490,-263.56623,0.00021672,2]
[329134510,1718129444501,-151.0,0.00021672,2]
[329134512,1718129444512,-151.0,0.00021672,2]
[329134514,1718129444522,-151.0,0.00021672,2]
[329134516,1718129444532,-285.037062,0.00021672,2]
[329134518,1718129444543,-151.0,0.00021672,2]
[329134520,1718129444554,-2755.035118,0.00021672,2]
[329134522,1718129444565,-151.0,0.00021672,2]
[329134524,1718129444575,-151.0,0.00021672,2]
[329134526,1718129444585,-151.0,0.00021672,2]
[329134527,1718129444596,-151.0,0.00021672,2]
[329134529,1718129444607,-2755.035118,0.00021672,2]
[329134531,1718129444618,-151.0,0.00021672,2]
[329134533,1718129444629,-151.0,0.00021672,2]
[329134536,1718129444639,-151.0,0.00021672,2]
[329134537,1718129444650,-1003.04803532,0.00021695,2]
[329134539,1718129444660,-287.57058886,0.00021698,2]
[329134541,1718129444672,-287.57058886,0.000217,2]
[329134543,1718129444682,-2200.0,0.000217,7]
[329134545,1718129444693,-1500.0,0.000217,7]
[329134548,1718129444704,-330.9619,0.00021717,2]
[329134549,1718129444714,-4230.3913,0.00021717,2]
[329134551,1718129444724,-235.93726994,0.00021738,2]
[329134553,1718129444735,-412.75360643,0.00021752,2]
[329134556,1718129444745,-2800.0,0.000218,7]
[329134558,1718129444757,-1900.0,0.000218,7]
[329134559,1718129444767,-175.18592882,0.00021807,2]
[329134562,1718129444778,-3190.0,0.00021808,2]
[329134563,1718129444789,-149940.0,0.00021808,2]
[329134566,1718129444801,-5049.8566397,0.00021815,7]
[329134568,1718129444812,-2138.57685314,0.00021815,2]
[329134569,1718129444822,-1000.0,0.00021817,2]
[329134571,1718129444833,-3162.122,0.00021817,2]
[329134573,1718129444844,-11588.3182,0.00021817,2]
[329134575,1718129444855,-500.0,0.00021817,2]
[329134578,1718129444866,-1435.4079,0.00021817,2]
[329134580,1718129444876,-100000.0,0.00021817,2]
[329134581,1718129444886,-1416.216,0.00021817,2]
[329134584,1718129444896,-4891.7275,0.00021817,2]
[329134585,1718129444907,-102594.83151581,0.00021817,2]
[329134599,1718129445078,-266.5680335,0.00021817,2]
[329134600,1718129445135,-364.20577069,0.00017259,2]
[329134602,1718129445147,-327.93122394,0.00021671,2]
[329134604,1718129445161,-882.70785527,0.00021817,2]
[329134606,1718129445174,-325.48572995,0.00021817,2]
[329134621,1718129445331,-424.33789475,0.00021817,2]
[329134752,1718129446567,-156.34146276,0.00017259,2]
[329134754,1718129446579,-505.28740736,0.00017259,2]
[329134756,1718129446590,-565.01856652,0.00017259,2]
[329134758,1718129446600,-155.46787492,0.00021671,2]
[329134760,1718129446611,-198.40222673,0.00021671,2]
[329134762,1718129446621,-2000.25333624,0.00021671,2]
[329134764,1718129446632,-63189.30749958,0.00021817,2]
[329134773,1718129446722,-1042.60180449,0.00021817,2]
[329134833,1718129447420,-76274.15966665,0.00021817,2]
[329134835,1718129447430,-1000.0,0.00021817,2]
[329134837,1718129447440,-151.0,0.00021817,2]
[329134839,1718129447451,-151.0,0.00021817,2]
[329134841,1718129447461,-155.10253,0.00021817,2]
[329134843,1718129447471,-151.0,0.00021817,2]
[329134845,1718129447481,-151.0,0.00021817,2]
[329134847,1718129447491,-163.162445,0.00021817,2]
[329134848,1718129447501,-151.0,0.00021817,2]
[329134851,1718129447511,-164.899962,0.00021817,2]
[329134852,1718129447522,-151.0,0.00021817,2]
[329134854,1718129447532,-151.0,0.00021817,2]
[329134856,1718129447542,-151.0,0.00021817,2]
[329134858,1718129447552,-151.0,0.00021817,2]
[329134860,1718129447562,-173.36377694,0.00021817,2]
[329134862,1718129447572,-151.0,0.00021817,2]
[329134864,1718129447582,-151.0,0.00021817,2]
[329134866,1718129447592,-151.0,0.00021817,2]
[329134868,1718129447602,-151.0,0.00021817,2]
[329134870,1718129447612,-151.0,0.00021817,2]
[329134872,1718129447622,-151.0,0.00021817,2]
[329134874,1718129447632,-151.0,0.00021817,2]
[329134876,1718129447642,-151.0,0.00021817,2]
[329134878,1718129447652,-151.0,0.00021817,2]
[329134880,1718129447662,-151.0,0.00021817,2]
[329134882,1718129447672,-151.0,0.00021817,2]
[329134884,1718129447682,-246.844105,0.00021817,2]
[329134886,1718129447692,-246.844105,0.00021817,2]
[329134888,1718129447702,-199.269397,0.00021817,2]
[329134890,1718129447712,-151.0,0.00021817,2]
[329134892,1718129447724,-151.0,0.00021817,2]
[329134894,1718129447734,-151.0,0.00021817,2]
[329134896,1718129447745,-224.398353,0.00021817,2]
[329134898,1718129447755,-151.0,0.00021817,2]
[329134900,1718129447767,-224.398353,0.00021817,2]
[329134902,1718129447777,-151.0,0.00021817,2]
[329134904,1718129447787,-151.0,0.00021817,2]
[329134906,1718129447798,-151.0,0.00021817,2]
[329134908,1718129447809,-151.0,0.00021817,2]
[329134910,1718129447820,-158.187502,0.00021817,2]
[329134912,1718129447830,-158.187502,0.00021817,2]
[329134914,1718129447840,-151.0,0.00021817,2]
[329134916,1718129447851,-151.0,0.00021817,2]
[329134918,1718129447861,-151.0,0.00021817,2]
[329134920,1718129447871,-151.0,0.00021817,2]
[329134922,1718129447882,-178.254448,0.00021817,2]
[329134924,1718129447892,-151.0,0.00021817,2]
[329134926,1718129447902,-151.0,0.00021817,2]
[329134928,1718129447913,-151.667771,0.00021817,2]
[329134930,1718129447924,-263.56623,0.00021817,2]
[329134932,1718129447934,-151.0,0.00021817,2]
[329134934,1718129447944,-263.56623,0.00021817,2]
[329134936,1718129447956,-235.93726994,0.00021817,2]
[329134938,1718129447966,-193.96012212,0.00021817,2]
[329134940,1718129447977,-151.0,0.00021817,2]
[329134942,1718129447987,-151.0,0.00021817,2]
[329134944,1718129447997,-151.0,0.00021817,2]
[329134946,1718129448008,-151.0,0.00021817,2]
[329134948,1718129448027,-2755.035118,0.00021817,2]
[329134950,1718129448041,-151.0,0.00021817,2]
[329134952,1718129448051,-580.45440327,0.00021817,2]
[329134954,1718129448062,-151.0,0.00021817,2]
[329134956,1718129448072,-151.0,0.00021817,2]
[329134958,1718129448082,-151.0,0.00021817,2]
[329134960,1718129448093,-2755.035118,0.00021817,2]
[329134962,1718129448103,-151.0,0.00021817,2]
[329134964,1718129448113,-151.0,0.00021817,2]
[329134966,1718129448123,-151.0,0.00021817,2]
[329134968,1718129448134,-2186.0,0.00021827,2]
[329134970,1718129448145,-200.0,0.00021877,2]
[329134972,1718129448158,-500.0,0.00021877,2]
[329134974,1718129448169,-200.0,0.00021877,2]
[329134976,1718129448179,-500.0,0.00021877,2]
[329135000,1718129448423,-200.0,0.00021877,2]
[329135002,1718129448437,-200.0,0.00021878,2]
[329135005,1718129448448,-500.0,0.00021878,2]
[329135007,1718129448459,-500.0,0.00021878,2]
[329135008,1718129448469,-500.0,0.00021878,2]
[329135011,1718129448479,-200.0,0.00021878,2]
[329135013,1718129448489,-200.0,0.00021878,2]
[329135015,1718129448500,-330.15,0.0002189,2]
[329135016,1718129448510,-1003.04803532,0.00021898,2]
[329135019,1718129448520,-500.0,0.000219,7]
[329135021,1718129448531,-300.0,0.000219,7]
[329135023,1718129448541,-267.2,0.000219,2]
[329135025,1718129448551,-175.18592882,0.00021907,2]
[329135027,1718129448562,-29168.53,0.0002191,2]
[329135029,1718129448572,-1500.0,0.0002191,2]
[329135030,1718129448582,-257.062512,0.0002191,2]
[329135032,1718129448594,-203.250678,0.0002191,2]
[329135034,1718129448605,-246.844105,0.0002191,2]
[329135036,1718129448615,-246.844105,0.0002191,2]
[329135038,1718129448625,-151.0,0.0002191,2]
[329135039,1718129448636,-151.0,0.0002191,2]
[329135041,1718129448646,-151.0,0.0002191,2]
[329135042,1718129448657,-224.398353,0.0002191,2]
[329135043,1718129448668,-151.0,0.0002191,2]
[329135044,1718129448678,-224.398353,0.0002191,2]
[329135045,1718129448690,-506.54758575,0.00021915,2]
[329135046,1718129448702,-1459.77300412,0.00021915,2]
[329135047,1718129448715,-163.04593255,0.00021915,2]
[329135048,1718129448727,-1713.82095435,0.00021915,2]
[329135049,1718129448738,-155.0,0.00021915,2]
[329135050,1718129448749,-285.21638539,0.00021915,2]
[329135051,1718129448760,-7539.93986431,0.00021915,2]
[329135053,1718129448771,-163.49476447,0.00021915,2]
[329135055,1718129448782,-6259.73033977,0.00021915,2]
[329135057,1718129448793,-155.41106129,0.00021915,2]
[329135059,1718129448803,-208.21284041,0.00021915,2]
[329135060,1718129448817,-161.18669565,0.00021915,2]
[329135062,1718129448827,-709.57669779,0.00021915,2]
[329135064,1718129448839,-170.08205433,0.00021915,2]
[329135067,1718129448849,-1252.78326197,0.00021915,2]
[329135068,1718129448861,-277.3658757,0.00021915,2]
[329135070,1718129448871,-156.59372117,0.00021915,2]
[329135073,1718129448882,-321.75766818,0.00021915,2]
[329135074,1718129448893,-368.57285769,0.00021915,2]
[329135076,1718129448904,-1807.61850809,0.00021915,2]
[329135079,1718129448916,-349.95238219,0.00021915,2]
[329135081,1718129448927,-6217.27907659,0.00021915,2]
[329135083,1718129448939,-327.03263673,0.00021915,2]
[329135085,1718129448950,-240.93311441,0.00021915,2]
[329135087,1718129448961,-155.0,0.00021915,2]
[329135089,1718129448971,-4814.59229454,0.00021915,2]
[329135091,1718129448982,-631.57620421,0.00021915,2]
[329135093,1718129448993,-155.0,0.00021915,2]
[329135095,1718129449004,-338.68648196,0.00021915,2]
[329135097,1718129449032,-1219.0116262,0.00021915,2]
[329135099,1718129449042,-155.0,0.00021915,2]
[329135101,1718129449053,-157.08940379,0.00021915,2]
[329135103,1718129449066,-205.60285074,0.00021915,2]
[329135105,1718129449076,-155.0,0.00021915,2]
[329135107,1718129449086,-155.0,0.00021915,2]
[329135109,1718129449096,-482.08388994,0.00021915,2]
[329135111,1718129449106,-201.47569243,0.00021915,2]
[329135113,1718129449117,-155.22699187,0.00021915,2]
[329135115,1718129449127,-155.0,0.00021915,2]
[329135117,1718129449137,-410.3746269,0.00021915,2]
[329135119,1718129449147,-248.1650208,0.00021915,2]
[329135121,1718129449162,-407.56315179,0.00021915,2]
[329135123,1718129449172,-166.65902904,0.00021915,2]
[329135125,1718129449182,-155.0,0.00021915,2]
[329135127,1718129449192,-265.82029383,0.00021915,2]
[329135129,1718129449203,-151.0,0.00021915,2]
[329135131,1718129449213,-151.0,0.00021915,2]
[329135133,1718129449223,-151.0,0.00021915,2]
[329135135,1718129449233,-151.0,0.00021915,2]
[329135137,1718129449245,-151.0,0.00021915,2]
[329135139,1718129449256,-243.075,0.00021915,2]
[329135141,1718129449266,-151.0,0.00021915,2]
[329135143,1718129449277,-151.0,0.00021915,2]
[329135145,1718129449287,-151.0,0.00021915,2]
[329135147,1718129449298,-151.0,0.00021915,2]
[329135149,1718129449308,-151.0,0.00021915,2]
[329135151,1718129449319,-151.0,0.00021915,2]
[329135153,1718129449329,-151.0,0.00021915,2]
[329135155,1718129449339,-151.0,0.00021915,2]
[329135157,1718129449350,-151.0,0.00021915,2]
[329135159,1718129449360,-151.0,0.00021915,2]
[329135161,1718129449371,-151.0,0.00021915,2]
[329135163,1718129449382,-151.0,0.00021915,2]
[329135165,1718129449392,-1381.55966992,0.00021916,7]
[329135167,1718129449402,-1557.75840263,0.00021916,2]
[329135169,1718129449413,-778.02154041,0.00021916,5]
[329135171,1718129449423,-2067.31,0.00021917,2]
[329135173,1718129449432,-176.11807774,0.00021917,2]
[329135175,1718129449442,-500.0,0.00021917,2]
[329135177,1718129449453,-500.0,0.00021917,2]
[329135179,1718129449463,-500.0,0.00021917,2]
[329135180,1718129449474,-500.0,0.00021917,2]
[329135183,1718129449485,-500.0,0.00021917,2]
[329135184,1718129449495,-500.0,0.00021917,2]
[329135186,1718129449506,-500.0,0.00021917,2]
[329135189,1718129449516,-666.49,0.00021917,2]
[329135191,1718129449526,-500.0,0.00021917,2]
[329135193,1718129449537,-500.0,0.00021917,2]
[329135195,1718129449547,-500.0,0.00021917,2]
[329135196,1718129449557,-500.0,0.00021917,2]
[329135198,1718129449569,-571.67743625,0.00021917,2]
[329135200,1718129449579,-500.0,0.00021917,2]
[329135202,1718129449589,-500.0,0.00021917,2]
[329135205,1718129449599,-500.0,0.00021917,2]
[329135206,1718129449609,-500.0,0.00021917,2]
[329135208,1718129449619,-500.0,0.00021917,2]
[329135211,1718129449629,-500.0,0.00021917,2]
[329135212,1718129449640,-500.0,0.00021917,2]
[329135214,1718129449650,-168.63666095,0.00021917,2]
[329135216,1718129449660,-500.0,0.00021917,2]
[329135218,1718129449670,-500.0,0.00021917,2]
[329135221,1718129449681,-500.0,0.00021917,2]
[329135223,1718129449691,-500.0,0.00021917,2]
[329135225,1718129449701,-500.0,0.00021917,2]
[329135226,1718129449711,-500.0,0.00021917,2]
[329135228,1718129449722,-500.0,0.00021917,2]
[329135230,1718129449732,-500.0,0.00021917,2]
[329135233,1718129449743,-500.0,0.00021917,2]
[329135235,1718129449753,-594.82,0.00021917,2]
[329135237,1718129449763,-500.0,0.00021917,2]
[329135239,1718129449775,-500.0,0.00021917,2]
[329135241,1718129449786,-500.0,0.00021917,2]
[329135243,1718129449796,-500.0,0.00021917,2]
[329135245,1718129449807,-500.0,0.00021917,2]
[329135247,1718129449819,-500.0,0.00021917,2]
[329135249,1718129449829,-500.0,0.00021917,2]
[329135251,1718129449839,-500.0,0.00021917,2]
[329135253,1718129449850,-500.0,0.00021917,2]
[329135255,1718129449862,-500.0,0.00021917,2]
[329135257,1718129449872,-745.65,0.00021917,2]
[329135259,1718129449882,-500.0,0.00021917,2]
[329135261,1718129449894,-486.72407717,0.00021917,2]
[329135267,1718129449947,-13.27592283,0.00021917,2]
[329135269,1718129449959,-500.0,0.00021917,2]
[329135271,1718129449970,-500.0,0.00021917,2]
[329135273,1718129449980,-500.0,0.00021917,2]
[329135275,1718129449990,-228.08905557,0.00021917,2]
[329136216,1718129463766,150.5,0.00022044,15]
[329136217,1718129463849,150.5,0.00022044,15]
[329136218,1718129464340,150.5,0.00022034,15]
[329136219,1718129464479,150.5,0.00022034,15]
[329136220,1718129465052,236.34,0.00022044,15]
[329136221,1718129465115,150.5,0.00022024,15]
[329136222,1718129465148,150.5,0.00022024,15]
[329136223,1718129465399,155.78,0.00022866,15]
[329136224,1718129465462,286.0,0.00022866,15]
[329136225,1718129518132,-155.0,0.00012486,2]
[329136226,1718129518249,-155.0,0.00012487,2]
[329136227,1718129518297,-6720.0,0.00012487,2]
[329136228,1718129556827,-749.66356435,0.00012487,2]
[329136229,1718129556848,-1139.6728713,0.00012487,2]
[329136230,1718129556859,-500.0,0.00012489,2]
[329136231,1718129556870,-249.66356435,0.00012489,2]
[329136232,1718129583276,229.5,0.00022044,15]
[329136233,1718129583416,150.5,0.00022044,15]
[329136234,1718129583990,150.5,0.00022034,15]
[329136249,1718130266347,303.52130696,0.00011928,2]
[329136250,1718130272877,303.52130694,0.00011958,2]
[329136251,1718130278202,303.52130694,0.00011988,2]
[329136253,1718130291547,152.89430419,0.00011925,2]
[329136254,1718130313647,299.79059261,0.00011988,2]
[329136255,1718130322289,3636.75118236,0.00011988,2]
[329136256,1718130322317,1124.00480884,0.00011988,2]
[329136257,1718130322605,289.94668151,0.00011988,2]
[329136258,1718130326553,977.947979,0.00011961,2]
[329136259,1718130327790,229.13011828,0.00011988,2]
[329136260,1718130336901,289.94668151,0.00011988,2]
[329136261,1718130344464,155.0,0.00011988,2]
[329136262,1718130356679,290.23768395,0.00011988,2]
[329136263,1718130358387,160.0,0.00011988,2]
[329136264,1718130375224,1362.61061232,0.00011988,2]
[329136265,1718130395683,121.17543459,0.00011928,2]
[329136266,1718130395712,78.82456541,0.00011928,2]
[329136267,1718130428171,-150.0,0.00012008,2]
[329136268,1718130428196,-300.0,0.00012008,2]
[329136269,1718130428222,-6509.74347157,0.00012009,2]
[329136270,1718130431117,-334.29552451,0.00012008,2]
[329136271,1718130431146,-6329.48541229,0.00012009,2]
[329136272,1718130436165,-4847.46506551,0.00012008,2]
[329136273,1718130441449,-1000.02215087,0.00012008,2]
[329136274,1718130448160,200.28049749,0.00011988,2]
[329136275,1718130494507,424.40050855,0.00012,2]
[329136276,1718130496473,1337.99277293,0.00012,2]
[329136277,1718130497950,429.8525504,0.00012,2]
[329136278,1718130501451,2528.64910522,0.00012,2]
[329136279,1718130501481,2087.59166953,0.00012,2]
[329136280,1718130502657,719.5469304,0.00012,2]
[329136281,1718130502708,2192.86140007,0.00012,2]
[329136282,1718130502735,176.56691976,0.00012,2]
[329136283,1718130504588,1639.38226919,0.00012,2]
[329136284,1718130504722,490.70591883,0.00012,2]
[329136285,1718130506923,482.08388994,0.00012,2]
[329136286,1718130507320,2195.01899183,0.00012,2]
[329136287,1718130507607,16.24201045,0.00012,2]
[329136288,1718130507635,509.26162943,0.00012,2]
[329136289,1718130513789,4445.7432569,0.00012,2]
[329136290,1718130513900,44.99511367,0.00012,2]
[329136291,1718130513928,319.21065702,0.00012,2]
[329136292,1718130518632,338.58185899,0.00012,2]
[329136293,1718130520735,4342.20748399,0.00012,2]
[329136294,1718130520762,4080.59233427,0.00012,2]
[329136295,1718130525503,919.40766573,0.00011902,2]
[329136296,1718130525530,294.57874091,0.00011902,2]
[329136297,1718130529180,453.49654734,0.00012,2]
[329136298,1718130536046,3019.72982412,0.00012,2]
[329136299,1718130539258,1232.19488763,0.00012,2]
[329136300,1718130539286,1834.35512512,0.00012,2]
[329136301,1718130544601,-7544.96004909,0.00012001,2]
[329136302,1718130544635,-978.53852919,0.00012004,2]
[329136303,1718130544670,-3375.07812476,0.00012008,2]
[329136304,1718130544706,-22654.7548897,0.00012009,2]
[329136305,1718130544739,-689.0,0.00012014,2]
[329136306,1718130544769,-150.99,0.00012014,2]
[329136307,1718130544804,-150.99,0.00012014,2]
[329136308,1718130544840,-1049.28,0.00012026,2]
[329136309,1718130544872,-2355.93,0.00012028,2]
[329136310,1718130544905,-1557.96,0.00012028,2]
[329136311,1718130544937,-707.99489315,0.00012389,2]
[329136312,1718130544970,-10979.27805314,0.000124,2]
[329136313,1718130545002,-483.33643565,0.00012489,2]
[329136314,1718130545035,-553.71,0.00012489,2]
[329136315,1718130546626,10540.40471413,0.00012,2]
[329136316,1718130562333,22995.99333651,0.00012,2]
[329136317,1718130562360,3165.64487488,0.00012,2]
[329136318,1718130562388,5000.0,0.00012,2]
[329136319,1718130562414,5000.0,0.00012,2]
[329136320,1718130562445,5000.0,0.00012,2]
[329136321,1718130562478,5000.0,0.00012,2]
[329136322,1718130562505,5000.0,0.00012,2]
[329136323,1718130562533,5000.0,0.00012,2]
[329136324,1718130562561,5000.0,0.00012,2]
[329136325,1718130562587,5000.0,0.00012,2]
[329136326,1718130562614,5000.0,0.00012,2]
[329136327,1718130562643,5000.0,0.00012,2]
[329136328,1718130566107,-4310.90983593,0.00012,2]
[329136339,1718130632785,-219.65,0.0001189,2]
[329136340,1718130632796,-197.46491076,0.000119,2]
[329136341,1718130632807,-744.88172739,0.000119,2]
[329136342,1718130632817,-9222.56534114,0.00011997,2]
[329136343,1718130632827,-364.20577069,0.00011998,2]
[329136344,1718130632837,-799.70096999,0.00011998,2]
[329136345,1718130632850,-313.48100007,0.00011998,2]
[329136346,1718130632863,-348.89010204,0.00011998,2]
[329136347,1718130632875,-291.505,0.00011998,2]
[329136348,1718130632887,-1064.71783951,0.00011998,2]
[329136349,1718130632901,-279.69657276,0.00011998,2]
[329136350,1718130632913,-1098.8377003,0.00011998,2]
[329136351,1718130632998,-399.12662878,0.00011998,2]
[329136352,1718130633010,-3219.86003655,0.00011998,2]
[329136353,1718130633022,-606.98396826,0.00011998,2]
[329136354,1718130633032,-1625.52061624,0.00011999,2]
[329136355,1718130633042,-150.0,0.00011999,2]
[329136356,1718130633052,-150.0,0.00011999,2]
[329136357,1718130633062,-6527.47777124,0.00012,2]
[329136358,1718130633152,-9717.3397618,0.00012,2]
[329136359,1718130633165,-1836.54472027,0.00012,2]
[329136360,1718130633295,-5069.16032113,0.00012,2]
[329136361,1718130633308,-9147.77014736,0.00012,2]
[329136362,1718130633321,-50433.78058437,0.00012,2]
[329136363,1718130633333,-1958.46774534,0.00012,2]
[329136373,1718130634723,-818.82444517,0.00012,2]
[329136374,1718130634736,-757.13168339,0.00012,2]
[329136375,1718130634750,-193321.94828434,0.00012,2]
[329136413,1718130638282,-424.40050855,0.00011889,2]
[329136415,1718130638293,-6930.65426721,0.00012,2]
[329136417,1718130638307,-1283.46999995,0.00012,2]
[329136420,1718130638320,-6978.07964646,0.00012,2]
[329136422,1718130638334,-17017.53061851,0.00012,2]
[329136424,1718130638347,-9698.6031071,0.00012,2]
[329136426,1718130638360,-697.541845,0.00012,2]
[329136427,1718130638372,-2571.36191226,0.00012,2]
[329136428,1718130638386,-322.77353232,0.00012,2]
[329136429,1718130638531,-798.65000003,0.00012,2]
[329136430,1718130638576,-2572.7999904,0.00012,2]
[329136431,1718130638622,-1210671.5465342,0.00012,2]
[329136432,1718130638634,-28931.47150167,0.00012,2]
[329136433,1718130638647,-4053.13635835,0.00012,2]
[329136434,1718130638658,-150.0,0.00012,2]
[329136435,1718130638670,-152.01,0.00012,2]
[329136436,1718130638681,-152.01,0.00012,2]
[329136437,1718130638692,-152.01,0.00012,2]
[329136438,1718130638705,-152.01,0.00012,2]
[329136439,1718130638715,-152.01,0.00012,2]
[329136440,1718130638725,-152.01,0.00012,2]
[329136441,1718130638736,-4180.67680472,0.000124,2]
[329136442,1718130638746,-5501.0,0.00012563,2]
[329136443,1718130638756,-219.65,0.00012904,3]
[329136444,1718130638766,-155.94476457,0.00013107,2]
[329136445,1718130638777,-210.0,0.00013199,2]
[329136446,1718130638788,-210.0,0.00013199,2]
[329136447,1718130638799,-2000.25333624,0.00013207,2]
[329136448,1718130638810,-242.22,0.00013717,2]